Cogmind - Beta 17 @@@ ROGUE MODE // 2026.08.14 @ 21:34:01 Player: NeoBioHazard Result: Destroyed by G-34 Mercenary with Small Laser Performance ------------- Evolutions (0) 0 Regions Visited (1) 200 Robots Destroyed (14) 70 Value Destroyed (397) 397 Prototype IDs (0) 0 Alien Tech Used (0) 0 Bonus (0) 0 TOTAL SCORE: 667 Bonus ------- None Cogmind --------- Core Integrity 0/250 Matter 222/300 Energy 125/125 System Corruption 2% Temperature Cool (6) Movement Treading (240) Ox1 Location -10/Materials Parts ------- > --- POWER (1) -------- Light Ion Engine > --- PROPULSION (2) --- Light Treads Aluminum Leg > --- UTILITY (2) ------ Large Storage Unit Backup Plating I > --- WEAPON (2) ------- EM Pulse Gun Light Cannon > --- INVENTORY (15) --- Light Ion Engine Light Ion Engine Light Ion Engine Heat Sink Improved Heat Sink Large Storage Unit Large Matter Pod (102) High-capacity Matter Pod (0) Peak State ------------ > --- POWER ------------ Ion Engine > --- PROPULSION ------- Light Treads Light Treads > --- UTILITY ---------- Heat Sink Large Storage Unit > --- WEAPON ----------- Light Assault Rifle Light Assault Rifle > --- INVENTORY -------- Light Ion Engine Light Ion Engine Light Ion Engine Light Ion Engine Small Storage Unit Large Matter Pod High-capacity Matter Pod EM Pulse Gun EM Pulse Gun Light Assault Rifle [Rating: 8] Favorites ----------- Power Light Ion Engine Engine Light Ion Engine Propulsion Light Treads Treads Light Treads Leg Aluminum Leg Utility Large Storage Unit Device Heat Sink Storage Large Storage Unit Protection Backup Plating I Weapon Light Assault Rifle Energy Gun EM Pulse Gun Ballistic Gun Light Assault Rifle Ballistic Cannon Light Cannon Build | -11 -10 ------- Run | Yrd Mat Slots Evolved . | . . Power . | . . Propulsion . | . . Utility . | . . Weapon . | . . Parts Attached 19 | 5 14 Power 4 | 1 3 Engine 4 | 1 3 Core . | . . Reactor . | . . Propulsion 4 | 2 2 Treads 3 | 2 1 Leg 1 | . 1 Wheel . | . . Hover . | . . Flight . | . . Utility 5 | 1 4 Device 1 | . 1 Storage 3 | 1 2 Processor . | . . Hackware . | . . Protection 1 | . 1 Artifact . | . . Weapon 6 | 1 5 Energy Gun 2 | . 2 Energy Cannon . | . . Ballistic Gun 3 | 1 2 Ballistic Cannon 1 | . 1 Launcher . | . . Special Weapon . | . . Impact Weapon . | . . Slashing Weapon . | . . Piercing Weapon . | . . Special Melee Weapon . | . . Unidentified Prototypes . | . . Parts Lost 6 | . 6 Power 1 | . 1 Propulsion 2 | . 2 Utility . | . . Weapon 3 | . 3 Highest Loss Streak 3 | . 3 To Critical Strikes . | . . Average Backups 6 | 2 6 Power 2 | . 2 Propulsion . | . . Utility 2 | . 2 Weapon 2 | 1 2 Tool/Special . | . . Unused Backups 4 | . 4 Power 1 | . 1 Propulsion . | . . Utility 3 | . 3 Weapon . | . . Tool/Special . | . . Average Slot Usage (%) 83 | . 83 Engine 14 | . 14 Treads 21 | . 21 Leg 1 | . 1 Device 1 | . 1 Storage 14 | . 14 Protection 4 | . 4 Energy Gun 2 | . 2 Ballistic Gun 21 | . 21 Peak Build Rating 8 | 5 8 Average Rating 5 | 3 6 On Entrance 2 | . 5 Avg Prop Armor Cover (%) 6 | . 6 Naked Turns . | . . Heaviest Build 29 | 9 29 Greatest Support 40 | 40 40 Greatest Overweight (x) 9 | . 9 Average Overweight (x) . | . . Largest Inventory Capacity 15 | 8 15 Average Capacity 12 | 6 12 Most Carried 11 | 3 11 Average Carried 6 | 2 7 Final Capacity 15 | 8 15 Final Carried 8 | 3 8 Class Distribution -------------------- 100% | Mutant Dominant Class ---------------- Mutant | -10/Materials Resources | -11 -10 ----------- Run | Yrd Mat Matter Collected 518 | 231 287 Remotely . | . . Salvage Created 396 | . 396 Parts 34 | . 34 Haulers Intercepted 1 | . 1 Recyclers Shooed 1 | . 1 Parts Field Recycled . | . . Retrieved Matter . | . . Parts Self-Destructed . | . . Prevented . | . . Parts Restored . | . . Kills | -11 -10 ------- Run | Yrd Mat Combat Hostiles Destroyed 11 | . 11 Guns 11 | . 11 Classes Destroyed 4 | . 4 Hauler 1 | . 1 Watcher 2 | . 2 Swarmer 6 | . 6 Grunt 5 | . 5 Best Kill Streak 4 | . 4 Combat Bots Only 3 | . 3 Max Kills in Single Turn 1 | . 1 Gunslinging . | . . Exploded . | . . Melee . | . . Uniques/NPCs Destroyed . | . . Combat | -11 -10 -------- Run | Yrd Mat Hostile Shots Fired 68 | . 68 Missed 17 | . 17 Hits 51 | . 51 Projectile 51 | . 51 Critical Strikes 1 | . 1 Damage Taken 982 | . 982 Core 252 | . 252 Absorbed by Shields . | . . Core Remaining (%) 100 | 100 . Volleys Fired 60 | . 60 Largest 2 | . 2 Hottest 80 | . 80 Shots Fired 101 | . 101 Gun 100 | . 100 Cannon 1 | . 1 Launcher . | . . Special . | . . Kinetic 97 | . 97 Thermal . | . . Explosive . | . . Electromagnetic 4 | . 4 Robot Hit Streak 26 | . 26 Robot Miss Streak 2 | . 2 Penetration Max . | . . Secondary Targets 1 | . 1 Max Gunslinging Chain 1 | . 1 Shots Hit Robots 74 | . 74 Core Hits 25 | . 25 Critical Kills . | . . Critical Parts Destroyed . | . . Critical Strikes . | . . Melee Attacks . | . . Impact . | . . Slashing . | . . Piercing . | . . Sneak Attacks . | . . Combat Hostiles . | . . Follow-up Attacks . | . . Damage Inflicted 770 | . 770 Guns 625 | . 625 Cannons . | . . Explosions 145 | . 145 Melee . | . . Ramming . | . . Kinetic 588 | . 588 Thermal 145 | . 145 Explosive . | . . Electromagnetic 37 | . 37 Impact . | . . Slashing . | . . Piercing . | . . Highest Corruption 2 | . 2 Average Corruption 1 | . 1 Corruption Purged . | . . Corruption Blocked . | . . Effects 14 | . 14 Message Errors 2 | . 2 Matter Fused 4 | . 4 Energy Discharges 1 | . 1 Parts Rejected 1 | . 1 Data Loss (minor) 4 | . 4 Data Loss (major) 1 | . 1 Misfires 1 | . 1 Overload Shots . | . . Overflow Damage 235 | . 235 Projectiles . | . . Explosions 235 | . 235 Melee . | . . Knockbacks . | . . Impact . | . . Kinetic . | . . Secondary . | . . Self-Inflicted Damage 255 | . 255 Shots 4 | . 4 Rammed . | . . Targets Rammed . | . . Kicked . | . . Crushed . | . . Highest Temperature 60 | . 60 Average Temperature 13 | . 13 Received Heat Transfer 300 | . 300 Siege Activations . | . . Martial Activations . | . . Shielding Activations . | . . Robots Disrupted . | . . Combat Hostiles . | . . Robots Corrupted . | . . Combat Hostiles . | . . Parts Fried . | . . Impact Corruptions . | . . Robots Melted . | . . Combat Hostiles . | . . Parts Melted . | . . Heat Transferred 100 | . 100 Parts Sabotaged . | . . Parts Stolen . | . . Parts Stripped . | . . Power Chain Reactions . | . . Alert | -11 -10 ------- Run | Yrd Mat Maximum Alert Level 1 | . 1 Low Security (%) 94 | 100 94 Level 1 5 | . 5 Level 2 . | . . Level 3 . | . . Level 4 . | . . Level 5 . | . . High Security . | . . Max Security . | . . Peak Influence 223 | . 223 Initial . | . . Average 68 | . 73 Influence Increases 549 | . 549 Destroy 0b10 Robot/C 220 | . 220 Destroy 0b10 Robot/NC 15 | . 15 Destroy Leader 46 | . 46 Successful Hack 6 | . 6 Disable Machine 180 | . 180 Destroy Structure 37 | . 37 Partial Spotted 15 | . 15 Lose Combat Pursuer 30 | . 30 Influence Decreases 447 | . 447 Time Decay 342 | . 342 Lost Part 60 | . 60 Purge Threat 45 | . 45 Squads Dispatched 1 | . 1 Investigation 1 | . 1 Extermination . | . . Reinforcement . | . . Assault . | . . Garrison . | . . Intercept . | . . Searches Triggered . | . . Construction Impeded . | . . Haulers Reinforced . | . . Active Scanning Responses . | . . Cargo Convoy Interrupts . | . . Stealth | -11 -10 --------- Run | Yrd Mat Distress Signals . | . . Communications Jammed . | . . Distress Signals . | . . Times Spotted 21 | . 21 Peak Tracking Total 3 | . 3 Tactical Retreats 2 | . 2 Traps | -11 -10 ------- Run | Yrd Mat Traps Triggered 3 | . 3 Indirectly . | . . Trap Hack Attempts . | . . Triggered . | . . Disarmed . | . . Reprogrammed . | . . Reused . | . . Traps Extracted . | . . Installed . | . . Triggered . | . . Machines | -11 -10 ---------- Run | Yrd Mat Machines Disabled 12 | . 12 Max in Single Turn 12 | . 12 Machines Repaired . | . . Machines Dismantled . | . . Machines Sabotaged . | . . Overloaded Fab Kills . | . . Hacking | -11 -10 --------- Run | Yrd Mat Machines Accessed 6 | . 6 Terminals 6 | . 6 Fabricators . | . . Repair Stations . | . . Recycling Units . | . . Scanalyzers . | . . Garrison Access . | . . Total Hacks 20 | . 20 Successful 4 | . 4 Failed 16 | . 16 Catastrophic 4 | . 4 Database Lockouts . | . . Manual 20 | . 20 Terminals 20 | . 20 Fabricators . | . . Repair Stations . | . . Recycling Units . | . . Scanalyzers . | . . Garrison Access . | . . Terminal Hacks 4 | . 4 Robot Analysis 3 | . 3 Unreport Threat 1 | . 1 Fabricator Hacks . | . . Repair Station Hacks . | . . Recycling Unit Hacks . | . . Scanalyzer . | . . Garrison Access Hacks . | . . Unauthorized Hacks . | . . Terminals . | . . Fabricators . | . . Repair Stations . | . . Recycling Units . | . . Scanalyzers . | . . Garrison Access . | . . Data Cores Recovered . | . . Used . | . . Hacking Detections 6 | . 6 Full Trace Events 2 | . 2 Feedback Events 1 | . 1 Corruption 1 | . 1 Feedback Blocked . | . . Robot Schematics Acquired . | . . Robots Built . | . . Authchips . | . . Time . | . . Total Robot Build Rating . | . . Part Schematics Acquired . | . . Parts Built . | . . Authchips . | . . Time . | . . Total Part Build Rating . | . . Part Studies Acquired . | . . Parts Repaired . | . . Time . | . . Parts Recycled . | . . Recycled Matter . | . . Retrieved Matter . | . . Retrieved Components . | . . Parts Scanalyzed . | . . Part Schematics Acquired . | . . Parts Damaged . | . . Bothacking | -11 -10 ------------ Run | Yrd Mat Used RIF Installer . | . . Robots Hacked . | . . Non-combat . | . . Combat . | . . Robot Hacks Applied . | . . Relay Couplers Released . | . . Fabnet Peak Effective % . | . . Robots Rewired . | . . Allies Hacked . | . . Hacks Repelled . | . . Allies | -11 -10 -------- Run | Yrd Mat Total Allies . | . . Largest Group . | . . Highest-Rated Group . | . . Highest-Rated Ally . | . . Total Orders . | . . Ally Attacks . | . . Total Damage . | . . Kills . | . . Allies Corrupted . | . . Allies Melted . | . . Intel | -11 -10 ------- Run | Yrd Mat Active Infowar (turns) . | . . Robot Analysis Total 3 | . 3 Derelict Logs Recovered . | . . Drone Launches . | . . Drone Recoveries . | . . Exploration | -11 -10 ------------- Run | Yrd Mat Turns Passed 1253 | 73 1180 Spaces Moved 533 | 44 489 Core 7 | 6 1 Treads 504 | 38 466 Legs 22 | . 22 Wheels . | . . Hover . | . . Flight . | . . Fastest Speed 50 | 50 160 Average Speed 183 | 145 186 Slowest Speed 500 | 160 500 Overloaded Moves . | . . Propulsion Burnouts . | . . Robots Hopped . | . . Potential Cave-ins . | . . Cave-ins Triggered . | . . Exploration Rate (%) 46 | 4 88 Regions Visited 1 Branch Regions . Pre-discovered Areas . | . . Known Exits Taken . | . . Unknown Exits Taken 1 | 1 . Scrap Searched . | . . Spaces Dug . | . . Terrain Destroyed 35 | . 35 Melee . | . . Projectile . | . . AOE 35 | . 35 Terrain Rammed . | . . Walls Destroyed . | . . Machines Disabled . | . . Actions | -11 -10 --------- Run | Yrd Mat Total 722 | 51 671 Wait 99 | . 99 Move 532 | 43 489 Hop . | . . Pick Up 8 | 3 5 Fast Attach 12 | 5 7 Attach 4 | . 4 Detach 2 | . 2 Swap 4 | . 4 Drop 1 | . 1 Fire 60 | . 60 Melee . | . . Ram . | . . Kick . | . . Crush . | . . Escape Stasis . | . . Rewire . | . . Trap . | . . Miscellaneous . | . . Route ------- -11/Scrapyard -10/Materials (discovered 3 exits: [*Mat x2] / [*Min]) History --------- Turn | Location | Event 8 | -11/Scrapyard | Discovered new exit (range 15) 74 | -11/Scrapyard | Entered Materials 311 | -10/Materials | Build established: Mutant 565 | -10/Materials | Discovered new exit (range 4) 607 | -10/Materials | Discovered new exit (range 14) 827 | -10/Materials | Core integrity fell below 50% 857 | -10/Materials | Lost 3 parts (1p1n1w) 1099 | -10/Materials | Core integrity fell below 20% 1137 | -10/Materials | Lost 3 parts (1n2w) 1143 | -10/Materials | Discovered new exit (range 16) 1254 | -10/Materials | Destroyed by G-34 Mercenary with Small Laser Last Messages --------------- 00955_ U-05 Engineer lays Concrete. 00958_ K-01 Serf collects debris. 01040_ System corrupted: Component data lost. 01082_ Lgt. Treads destroyed. 01086_ Lgt. Assault Rifle destroyed. 01098_ Critical hit (Burn: +37). 01106_ Lgt. Assault Rifle destroyed. 01111_ G-47 Trooper destroyed. 01119_ Acquired Aluminum Leg. 01121_ Acquired 55 matter. 01129_ Acquired Imp. Heat Sink. 01133_ R-06 Scavenger collects Corrupted Particle Gun. 01143_ EXIT=FOUND 01160_ System corrupted: Matter fused (-8). 01176_ D R|BB1QQGEQCM5K#U8XQFB QOE5G=KM4N7T 01179_ Acquired Lgt. Treads. 01185_ Acquired Lgt. Cannon. 01205_ System corrupted: FCS attempts to trigger Lgt. Cannon. 01205_ System corrupted: Lgt. Cannon misfires. 01243_ System corrupted: Energy discharge (-26). Map ----- +----------------------------------------------------+ | ########## | | # # | | # # ###########+###" | | # + #????# " | | # # #????# " | | # # #????# """ # | | # ###+######## """"" # | | # # ## """"" + | | # # ## """"" # | | # # ##??""" ####+#### | | # # """"""" #? #? !?# | | # # """"""" #?#/######### # | | ######### """"""" #?# #???????# # | | ????????# """"""" #?# #???????# [ # | | ????????# """"""??#?# #??############# | | ????????##??????????# #??# #?# | | ???????????????????## ##?# """ #?# | | ???????????????????# ### """"" ### | | ???????????????????# + """"" # | | ?????????########??# ### """"" + | | ?????????#[ #??# #?# """ # | | ?????????# """ #??# #?# # | | ?????????# """ #??# #?# # | | ??######## """ #??# #?###########^^ | | ?? # """ #??# #???????????# | | ??"" """ #^ @ #??# #???????????# | | ? "Y """ #+#g####### #???????????# | | # "" """ # #???????????# | | # + #???????????# | | # """ # #???????????# | | # """ ########### #???????????# | | # """ #?????????# #???????????# | | ? #?????????# #???????????# | | ??########?????????# #???????????# | | ???????????????????+ #???????????# | | ???????????????????# #???????????? | | ???????????????????# #?????????????? | | ???????????????????? #?????????????? | | ???????????????????? #?????????????? | | ???????????????????? #?????????????? | | ???????????????????? < #?????????????? | | ???????????????????? #?????????????? | | ?????????????????????????????????????? | | ?????????????????????????????????????? | | ?????????????????????????????????????? | | ?????????????????????????????????????? | | ?????????????????????????????????????? | | ?????????????????????????????????????? | | | | | +----------------------------------------------------+ Best States ------------- Heat Dissipation 35 Energy Generation 10 Energy Capacity 250 Matter Stores 300 Matter Capacity 300 Sight Range 16 Terrain Scan Density 10 Armor Coverage 80 Evasion (%) 40 Recoil Reduction 2 Item Schematics ----------------- None Robot Schematics ------------------ None Fabricated ------------ Nothing Repaired ---------- Nothing Studied --------- None Alien Tech Used ----------------- None Achievements -------------- None Challenges ------------ None Game ------ Seed MomentumBlastHarness Manual? 0 Play Time 00:11:15 Cumulative 262.2 hours Start 2026.08.14 @ 21:28:01 End 2026.08.14 @ 21:34:01 Sessions 1 Manual Loads 0 Difficulty Rogue Special Mode None Game No. 450 Rogue 287 Adventurer 15 Explorer 148 Win Type - Total 30 Types 29/0/0/1/0/0/0/0/0/0 Lore% 65 Gallery% 64 Achievement% 58 Wizard Run 0 Options --------- Layout 0 ASCII 0 Keyboard 1 Movement Numpad Keybinds 0 Fullscreen 2 Font 18/SmallcapsGlow Map View 76x50 Zoom Use 0% Tactical HUD 1 Map Filters NONE Filters NONE Steam 1 RUN: bb627285-5baf-4337-b077-2ccbd8eb9b2c